[Event "Danish-ch Masters 2022"]
[Site "Svendborg"]
[Date "2022.04.11"]
[Round "3.5"]
[White "Schandorff, Lars"]
[Black "Percivaldi, Martin"]
[Result "1-0"]
[ECO "A06"]
[WhiteElo "2469"]
[BlackElo "2389"]
[Annotator "TA"]
[PlyCount "75"]
[EventDate "2022.04.10"]
[EventType "tourn"]
[EventCountry "DEN"]
[SourceTitle "playchess.com"]
[Source "ChessBase"]
[SourceQuality "1"]
[TimeControl "40/5400+30:1800+30"]

{[%evp 19,75,7,8,0,0,0,0,0,0,0,0,-24,0,-2,0,7,0,-2,0,-7,35,43,28,24,204,202,213,213,213,218,220,213,212,195,188,148,123,122,128,104,112,69,151,112,269,206,420,389,430,451,29986,29986,29988,29989,29990,29991,29991,29984]} 1. Nf3 {[%emt 0:00:07]} d5 {[%emt 0:00:54]} 2. e3 {[%emt 0:00:33]} Nf6 {[%emt 0:01:53]} 3. c4 {[%emt 0:00:17]} e6 {[%emt 0:01:04]} 4. Nc3 {[%emt 0:04:19]} Be7 {[%emt 0:01:43]} 5. b3 {[%emt 0:01:09]} O-O {[%emt 0:01:23]} 6. Bb2 {[%emt 0:00:09]} b6 {[%emt 0:00:17]} 7. cxd5 {[%emt 0:02:23]} exd5 {[%emt 0:00:40]} 8. d4 {[%emt 0:01:15]} Bb7 {[%emt 0:03:28]} 9. Bd3 {[%emt 0:00:37]} Nbd7 {[%emt 0:03:03]} 10. O-O {[%emt 0:00:38]} a6 {[%emt 0:07:53]} 11. Qc2 {[%emt 0:03:42] E14: Queen's Indian: Classical Variation (4 e3).} (11. Ne5 {with more complications.} Bd6 12. f4 Ne4 13. Rf3) 11... Bd6 {[%emt 0:02:02]} 12. Rac1 {[%emt 0:03:50]} Re8 {[%emt 0:02:48] is currently scoring better than 12...Qe7.} 13. Ne2 {[%emt 0:07:00] [#] The position is equal.} c6 $146 {[%emt 0:15:57]} ({Predecessor:} 13... Ne4 14. Ne5 Bxe5 15. dxe5 Ndc5 16. Rfd1 Nxd3 17. Rxd3 Nc5 18. Rd2 Qg5 19. Nf4 Rac8 20. Nxd5 {1-0 (29) Le,Q (2709)-Hera,I (2611) Chess.com INT 2020}) 14. Bf5 {[%emt 0:24:29]} Qe7 {[%emt 0:09:28]} 15. Rfd1 {[%emt 0:07:50]} Rad8 {[%emt 0:04:16]} 16. Nc3 {[%emt 0:02:34]} g6 {[%emt 0:02:59]} 17. Bh3 {[%emt 0:02:23]} h5 {[%emt 0:03:25]} 18. Re1 {[%emt 0:04:16]} c5 {[%emt 0:07:22]} 19. Rcd1 {[%emt 0:07:52]} c4 {[%emt 0:05:24]} 20. bxc4 {[%emt 0:05:00]} dxc4 {[%emt 0:00:57]} 21. e4 {[%emt 0:00:20] Strongly threatening e5.} Bxe4 {[%emt 0:06:25]} (21... Bb4 $11) 22. Nxe4 $18 {[%emt 0:01:11]} Nxe4 {[%emt 0:00:07]} 23. Nd2 $1 {[%emt 0:12:27]} Ndf6 {[%emt 0:05:46] [#]} 24. Nxe4 $1 {[%emt 0:00:35]} Nxe4 {[%emt 0:00:06]} 25. f3 {[%emt 0:00:29]} Bxh2+ {[%emt 0:00:53]} 26. Kxh2 {[%emt 0:00:07]} Qc7+ {[%emt 0:00:12]} 27. Kg1 {[%emt 0:03:43]} Ng5 {[%emt 0:00:14][%cal Og5f3] [#]} 28. Qf2 {[%emt 0:01:16]} c3 {[%emt 0:02:58]} 29. Bc1 {[%emt 0:00:40]} Nxh3+ {[%emt 0:02:25]} 30. gxh3 {[%emt 0:00:02]} Qc4 {[%emt 0:01:49]} ({Better is} 30... Rxe1+ $1 $14 31. Rxe1 Qc4) 31. Re4 {[%emt 0:01:49]} ({Inferior is} 31. Rxe8+ Rxe8 32. Re1 Rxe1+ 33. Qxe1 Qxd4+ 34. Qe3 Qb4 $11) 31... f5 $2 {[%emt 0:02:16]} (31... b5 $16) 32. Re3 {[%emt 0:00:28]} c2 $2 {[%emt 0:01:41]} (32... Kf7 33. d5 Rxd5 34. Rxd5 Qxd5) 33. Rd2 {[%emt 0:01:40]} Rxe3 {[%emt 0:01:13]} 34. Qxe3 {[%emt 0:00:01]} Qxa2 {[%emt 0:00:10]} (34... Kf7 $18 35. Qh6 Rg8) 35. d5 {[%emt 0:00:36] White mates.} Qb1 {[%emt 0:01:54]} 36. Qe6+ {[%emt 0:00:41]} Kh7 {[%emt 0:00:18]} 37. Qe7+ {[%emt 0:00:27]} Kh6 {[%emt 0:00:08]} 38. Rd1+ {[%emt 0:01:14] Weighted Error Value: White=0.09 (flawless) /Black=0.62} 1-0

[Event "Danish-ch Masters 2022"]
[Site "Svendborg"]
[Date "2022.04.12"]
[Round "4.2"]
[White "Haubro, Martin"]
[Black "Borge, Nikolaj"]
[Result "1-0"]
[ECO "C80"]
[WhiteElo "2399"]
[BlackElo "2392"]
[Annotator "TA"]
[PlyCount "103"]
[EventDate "2022.04.10"]
[EventType "tourn"]
[EventCountry "DEN"]
[SourceTitle "playchess.com"]
[Source "ChessBase"]
[SourceQuality "1"]
[TimeControl "40/5400+30:1800+30"]

{[%evp 25,103,38,25,26,28,22,61,64,83,80,69,74,100,100,117,106,133,131,127,100,97,97,152,108,144,170,243,242,396,262,403,377,459,444,443,442,418,418,420,408,638,252,634,634,631,619,656,651,818,804,1559,631,1723,1723,29963,29964,29964,29964,29996,29980,29980,29981,29981,29982,29982,29983,29984,29982,29982,29982,29982,29983,29982,29984,29984,29985,29986,29987,29987,506]} 1. e4 {[%emt 0:00:04] Mikhalevski,V} e5 {[%emt 0:00:14]} 2. Nf3 {[%emt 0:00:15]} Nc6 {[%emt 0:00:08]} 3. Bb5 {[%emt 0:00:05]} a6 {[%emt 0:00:07]} 4. Ba4 {[%emt 0:00:06]} Nf6 {[%emt 0:00:12]} 5. O-O {[%emt 0:00:07]} Nxe4 {[%emt 0:03:01]} 6. d4 {[%emt 0:00:32]} b5 {[%emt 0:01:07]} 7. Bb3 {[%emt 0:00:05]} d5 {[%emt 0:00:13]} 8. dxe5 {[%emt 0:00:06]} Be6 {[%emt 0:00:07]} 9. Nbd2 {[%emt 0:03:01]} Be7 {[%emt 0:04:09]} 10. c3 {[%emt 0:08:21]} Nc5 {[%emt 0:01:25]} 11. Bc2 {[%emt 0:04:07]} d4 {[%emt 0:01:37]} 12. cxd4 {[%emt 0:12:21]} Nxd4 {[%emt 0:00:41]} 13. Nxd4 {[%emt 0:00:07]} Qxd4 {[%emt 0:00:11]} 14. Nf3 {[%emt 0:02:41] C83: Open Ruy Lopez: 9 c3 Be7.} Qxd1 {[%emt 0:08:26]} 15. Rxd1 {[%emt 0:04:06]} Bg4 {[%emt 0:26:46]} 16. Be3 {[%emt 0:07:11] White is slightly better.} O-O {[%emt 0:08:55]} 17. h3 {[%emt 0:17:19]} Bxf3 {[%emt 0:04:12]} 18. gxf3 {[%emt 0:00:05]} Rfd8 {[%emt 0:17:46]} 19. f4 $36 {[%emt 0:00:51][%mdl 2048] [#] White has strong initiative.} a5 $146 {[%emt 0:04:32]} ({Predecessor:} 19... g6 20. Kg2 Na4 21. Rxd8+ Rxd8 22. Bxa4 bxa4 23. Rc1 c5 24. Rc4 a3 25. b3 Kf8 {1-0 (43) Leko,P (2701)-Khalifman,A (2628) Budapest 2000 CBM 075 [Mikhalevski,V]}) 20. Rac1 {[%emt 0:03:06][%cal Ba1c1,Bc1d1,Bd1d7][%mdl 32]} Na6 {[%emt 0:06:55]} 21. Bd3 {[%emt 0:18:49][%cal Bc2d3,Bd3e2,Be2f3][%mdl 32]} Rab8 {[%emt 0:02:09]} 22. Be2 {[%emt 0:03:34] &Bianco is more active.} Rxd1+ {[%emt 0:01:53]} 23. Rxd1 {[%emt 0:00:05]} a4 {[%emt 0:03:03]} ({Black should try} 23... Nb4) 24. a3 {[%emt 0:10:09]} Kf8 {[%emt 0:00:38]} 25. f5 {[%emt 0:00:24]} f6 {[%emt 0:01:57]} (25... Bc5 $142 26. Bxc5+ Nxc5) 26. e6 $18 {[%emt 0:00:54]} c6 $2 {[%emt 0:01:31]} (26... Bd6 27. Rd5 Ke7) 27. Bf3 {[%emt 0:01:43]} Rc8 {[%emt 0:00:27]} (27... Rd8 {keeps fighting.} 28. Rxd8+ Bxd8 29. Bxc6 Nc7) 28. Rd7 {[%emt 0:00:11]} b4 {[%emt 0:00:38]} 29. Ra7 {[%emt 0:00:24]} bxa3 {[%emt 0:01:16]} 30. bxa3 {[%emt 0:00:05]} Nc7 {[%emt 0:00:06]} 31. Bxc6 {[%emt 0:00:48] aiming for Bd7.} Bd6 {[%emt 0:00:50]} 32. Bxa4 {[%emt 0:02:51] This bishop pair is nice.} Nd5 {[%emt 0:00:43]} (32... g6 $142 33. Bc2 gxf5 34. Bxf5 Ra8 35. Rxa8+ (35. Bxh7 Rxa7 36. Bxa7 Bxa3 $18) 35... Nxa8) 33. Rf7+ {[%emt 0:01:04]} Kg8 {[%emt 0:00:02]} 34. Rd7 {[%emt 0:00:55]} Nxe3 {[%emt 0:00:12]} 35. fxe3 {[%emt 0:00:33]} Bxa3 {[%emt 0:00:05][%mdl 4096] Endgame KRB-KRB} 36. Bb3 {[%emt 0:00:06]} Kf8 {[%emt 0:01:19] Against e7+} 37. Rf7+ {[%emt 0:00:17]} Kg8 {[%emt 0:00:06] [#]} 38. e7 {[%emt 0:00:25]} (38. Rc7 $142 $3 {[%mdl 512]} Rb8 (38... Re8 39. e7+) 39. e7+ Kh8 40. Rb7 $3 {[%mdl 512]}) 38... Bxe7 {[%emt 0:00:06]} 39. Rxe7+ {[%emt 0:00:06] KRB-KR} Kh8 {[%emt 0:00:05]} 40. Bf7 {[%emt 0:00:32] White mates.} Rc1+ {[%emt 0:00:19]} 41. Kf2 {[%emt 0:30:06][%cal Re7e8]} h5 {[%emt 0:30:14]} 42. h4 {[%emt 0:01:14]} Rc8 {[%emt 0:01:31]} 43. Re8+ {[%emt 0:00:14]} Rxe8 {[%emt 0:00:08]} 44. Bxe8 {[%emt 0:00:05]} Kh7 {[%emt 0:00:16]} 45. Bxh5 {[%emt 0:00:06] KB-KPP} Kh6 {[%emt 0:00:02]} 46. Bg4 {[%emt 0:00:07]} Kh7 {[%emt 0:00:04]} 47. Kf3 {[%emt 0:00:17]} Kg8 {[%emt 0:00:50]} 48. Ke4 {[%emt 0:00:05]} Kh8 {[%emt 0:00:20]} 49. Kd5 {[%emt 0:00:05]} Kg8 {[%emt 0:00:03]} 50. Ke6 {[%emt 0:00:09]} Kh7 {[%emt 0:00:30]} 51. Kf7 {[%emt 0:00:15]} Kh8 {[%emt 0:00:12]} 52. Kg6 {[%emt 0:00:05] Weighted Error Value: White=0.32/Black=0.63} (52. e4 $142 Kh7 53. h5 Kh6 54. Kg8 Kg5 {[#]} 55. Kxg7 $1 Kf4 56. Kxf6 $1 Kxe4 57. h6) 1-0

[Event "Danish-ch Masters 2022"]
[Site "Svendborg"]
[Date "2022.04.12"]
[Round "4.4"]
[White "Percivaldi, Martin"]
[Black "Olsen, Filip Boe"]
[Result "1-0"]
[ECO "D37"]
[WhiteElo "2389"]
[BlackElo "2386"]
[Annotator "TA"]
[PlyCount "43"]
[EventDate "2022.04.10"]
[EventType "tourn"]
[EventCountry "DEN"]
[SourceTitle "playchess.com"]
[Source "ChessBase"]
[SourceQuality "1"]
[TimeControl "40/5400+30:1800+30"]

{[%evp 9,43,17,42,37,33,36,39,36,46,33,39,30,43,37,32,42,38,29,66,66,79,43,58,61,107,114,265,265,396,383,774,798,854,847,1416,1396]} 1. d4 {[%emt 0:00:12]} Nf6 {[%emt 0:00:24]} 2. c4 {[%emt 0:00:06]} e6 {[%emt 0:00:13]} 3. Nf3 {[%emt 0:00:10]} d5 {[%emt 0:00:09]} 4. Nc3 {[%emt 0:01:31]} dxc4 {[%emt 0:03:15]} 5. e4 {[%emt 0:04:06][%cal Be2e4,Be4e5][%mdl 32]} b5 {[%emt 0:00:27]} 6. e5 {[%emt 0:00:36] D24: Queen's Gambit Accepted: 3 Nf3 Nf6 4 Nc3.} Nd5 {[%emt 0:00:09]} 7. Nxb5 {[%emt 0:00:08]} Nb6 {[%emt 0:00:43]} 8. Be2 {[%emt 0:01:00] White is slightly better.} Nc6 {[%emt 0:02:16]} 9. O-O {[%emt 0:01:00]} Be7 {[%emt 0:02:26] Prevents Bg5.} 10. Qd2 {[%emt 0:04:49] is now debated instead of 10.Be3.} O-O {[%emt 0:01:39]} 11. Qf4 {[%emt 0:00:19]} Nb4 {[%emt 0:11:04]} 12. Qg4 {[%emt 0:30:09] [#] And now Bh6 would win.} Kh8 $146 {[%emt 0:08:19]} ({Predecessor:} 12... Re8 13. Rd1 Bb7 14. h4 Qd7 15. Nc3 Rad8 16. h5 f5 17. exf6 Bxf6 18. Bg5 Bxg5 19. Qxg5 Bxf3 20. Bxf3 {½-½ (64) Dreev,A (2649)-Grachev,B (2626) Moscow 2018}) 13. Rd1 {[%emt 0:09:04][%cal Bf1d1,Bd1d3,Bd3h3][%mdl 32]} Nd3 {[%emt 0:08:11]} 14. Bxd3 {[%emt 0:14:54]} cxd3 {[%emt 0:00:12]} 15. a4 {[%emt 0:01:48]} Ba6 {[%emt 0:07:29][%cal Ob6a4]} 16. Rxd3 {[%emt 0:04:59] aiming for Ng5.} f5 {[%emt 0:32:11]} (16... c6 17. Qh5 $11) (16... Nxa4 $14 17. Rxa4 (17. Rb3 $2 Qd5 $19) 17... Bxb5) 17. exf6 $1 $16 {[%emt 0:01:52] &Bianco is much more active.} Rxf6 $2 {[%emt 0:01:12] [#] Loses the game.} (17... Bxf6 $16 18. Ng5 (18. Qxe6 Re8 $16) 18... Bxb5 19. axb5 Qd7) 18. Ne5 $18 {[%emt 0:02:10] Hoping for Rh3.} Qf8 {[%emt 0:09:04]} (18... Bxb5 {was called for.} 19. axb5 Bd6) 19. Rh3 {[%emt 0:02:34]} ({Not} 19. Bg5 Bxb5 20. axb5 Rf5 $18) 19... Kg8 $2 {[%emt 0:01:36]} (19... Bd6 20. Nxd6 cxd6) 20. Nxc7 {[%emt 0:01:29] Pair of Knights! White is clearly winning.} Rc8 {[%emt 0:05:14]} 21. Nxa6 {[%emt 0:01:11]} Rc2 {[%emt 0:02:39]} 22. Qe4 {[%emt 0:02:18][%csl LRc2,LRh7] Weighted Error Value: White=0.06 (flawless) /Black=0.33} 1-0

[Event "Danish-ch Masters 2022"]
[Site "Svendborg"]
[Date "2022.04.13"]
[Round "5.2"]
[White "Sylvan, Jacob"]
[Black "Haubro, Martin"]
[Result "0-1"]
[ECO "B24"]
[WhiteElo "2312"]
[BlackElo "2399"]
[Annotator "TA"]
[PlyCount "88"]
[EventDate "2022.04.10"]
[EventType "tourn"]
[EventCountry "DEN"]
[SourceTitle "playchess.com"]
[Source "ChessBase"]
[SourceQuality "1"]
[TimeControl "40/5400+30:1800+30"]

{[%evp 10,88,24,24,35,29,24,16,17,10,7,12,31,31,27,20,20,21,75,67,60,56,64,60,77,73,66,69,75,59,66,77,54,52,82,0,47,56,91,83,85,45,50,35,45,30,55,62,85,-215,-219,-219,-213,-196,-189,-227,-1,-7,0,0,0,-1849,-1749,-2527,-2485,-2112,-1902,-3516,-2835,-5640,-3588,-29982,-29982,-29982,-29983,-29987,-29988,-29988,-29989,-29989,-773]} 1. e4 {[%emt 0:00:04]} c5 {[%emt 0:00:18]} 2. Nc3 {[%emt 0:00:48]} Nc6 {[%emt 0:00:55]} 3. Nf3 {[%emt 0:00:37][%cal Bg1f3,Bf3d2,Bd2c4,Bc4e5,Be5g6][%mdl 32]} e5 {[%emt 0:01:23]} 4. Bc4 {[%emt 0:00:53]} d6 {[%emt 0:01:39]} 5. d3 {[%emt 0:00:06]} Be7 {[%emt 0:00:23]} 6. O-O {[%emt 0:02:53][%cal Of3g5]} h6 {[%emt 0:02:49] Prevents Ng5. B30: Sicilian: 2...Nc6 3 Bb5, lines without ...g6.} 7. a3 {[%emt 0:02:25]} Nf6 {[%emt 0:01:36] [#]} 8. Nd2 $146 {[%emt 0:03:08]} ({Predecessor:} 8. Rb1 O-O 9. h3 Be6 10. b4 b6 11. Nd5 Nd4 12. Nxd4 cxd4 13. f4 Bxd5 14. exd5 {1-0 (51) Kovalev,V (2623)-Praggnanandhaa,R (2612) Chess.com INT 2022}) 8... Bg4 {[%emt 0:14:42] The position is equal.} 9. f3 {[%emt 0:02:00]} Be6 {[%emt 0:00:47]} 10. Bd5 {[%emt 0:04:35]} Qd7 {[%emt 0:09:09]} 11. Nc4 {[%emt 0:02:34]} Nd4 {[%emt 0:08:37]} 12. Bxe6 {[%emt 0:22:20]} fxe6 {[%emt 0:04:48]} 13. f4 {[%emt 0:03:04]} exf4 {[%emt 0:13:04]} (13... Nc6 $11 {keeps the balance.}) 14. e5 $1 $16 {[%emt 0:05:03]} (14. Rxf4 O-O $15) 14... dxe5 {[%emt 0:07:29]} 15. Nxe5 {[%emt 0:03:02]} Qc7 {[%emt 0:00:23]} 16. Ng6 {[%emt 0:06:41]} Rg8 $1 {[%emt 0:00:06][%cal Of4f3]} 17. Bxf4 {[%emt 0:02:18]} Bd6 {[%emt 0:00:09]} 18. Bxd6 {[%emt 0:01:11]} Qxd6 {[%emt 0:00:06]} 19. Ne4 {[%emt 0:00:17]} Nxe4 {[%emt 0:08:58]} 20. dxe4 {[%emt 0:02:20]} O-O-O {[%emt 0:00:10]} 21. c3 {[%emt 0:00:45]} Nc6 {[%emt 0:00:25]} 22. Qb3 {[%emt 0:02:08]} (22. Qh5 $1 $16) 22... e5 {[%emt 0:03:00]} (22... Rge8 $11 {is more appropriate.}) 23. Nh4 $14 {[%emt 0:03:52]} ({But not} 23. Rf7 $2 Na5 24. Ne7+ Qxe7 $3 {[%mdl 512]} 25. Rxe7 Nxb3 $19) 23... Rgf8 {[%emt 0:07:23] [#]} 24. Nf5 $1 {[%emt 0:00:42]} Qd3 {[%emt 0:02:10]} 25. Rad1 {[%emt 0:02:16]} c4 {[%emt 0:03:05]} 26. Rxd3 {[%emt 0:08:38] Intending Nd6+ and mate.} (26. Qa4 {with more complications.} Qe2 27. Rde1 Qxb2 28. Qxc4 Qb6+ 29. Kh1) 26... cxb3 {[%emt 0:00:04]} 27. Rd5 {[%emt 0:00:30]} (27. Rfd1 {is more complex.} Na5 28. Rd5 Kc7 29. Nd6) 27... g6 {[%emt 0:03:38]} 28. Nd6+ {[%emt 0:03:24]} ({Much worse is} 28. Nxh6 Rxf1+ 29. Kxf1 Rxd5 30. exd5 Na5 $17) 28... Kc7 {[%emt 0:00:41] ...Rxf1+ is the strong threat.} 29. Nc4 $2 {[%emt 0:00:27][%mdl 8192]} (29. Nb5+ $16 {and life is bright.} Kb8 30. Rxf8 Rxf8 31. Nd6) 29... Rxf1+ $19 {[%emt 0:04:05]} 30. Kxf1 {[%emt 0:00:20]} Rxd5 {[%emt 0:02:16]} 31. exd5 {[%emt 0:00:06][%mdl 4096] Endgame [#] KN-KN} b5 $1 {[%emt 0:00:04]} 32. Ne3 {[%emt 0:01:08] [#]} (32. Nd2 Na5) 32... Ne7 {[%emt 0:00:42]} (32... Na5 $1 $19 33. Ke2 e4) 33. c4 $1 $11 {[%emt 0:01:39] aiming for c5.} Nf5 {[%emt 0:00:39]} 34. Nxf5 {[%emt 0:00:30]} gxf5 {[%emt 0:00:04] KP-KP} 35. c5 {[%emt 0:00:04][%mdl 8192]} (35. cxb5 $11 Kd6 36. Ke2) 35... h5 $19 {[%emt 0:00:21]} 36. g3 {[%emt 0:01:06]} a5 {[%emt 0:00:05] Hoping for ...a4.} 37. Ke2 {[%emt 0:00:24]} a4 {[%emt 0:00:16][%cal Ob5b4] Strongly threatening ...b4!} 38. Kd3 {[%emt 0:01:58]} e4+ {[%emt 0:00:07]} 39. Kd4 {[%emt 0:00:41]} b4 {[%emt 0:00:24]} 40. d6+ {[%emt 0:00:37]} Kd8 {[%emt 0:01:16] Black mates.} 41. axb4 {[%emt 0:39:14]} a3 {[%emt 0:30:06]} 42. b5 {[%emt 0:00:03]} axb2 {[%emt 0:00:13]} 43. b6 {[%emt 0:00:25]} b1=Q {[%emt 0:00:05]} 44. b7 {[%emt 0:00:22]} Qd3+ {[%emt 0:00:05] Weighted Error Value: White=0.83/Black=0.17 (very precise)} 0-1

[Event "Danish-ch Masters 2022"]
[Site "Svendborg"]
[Date "2022.04.13"]
[Round "5.4"]
[White "Borge, Nikolaj"]
[Black "Percivaldi, Martin"]
[Result "0-1"]
[ECO "C50"]
[WhiteElo "2392"]
[BlackElo "2389"]
[Annotator "TA"]
[PlyCount "78"]
[EventDate "2022.04.10"]
[EventType "tourn"]
[EventCountry "DEN"]
[SourceTitle "playchess.com"]
[Source "ChessBase"]
[SourceQuality "1"]
[TimeControl "40/5400+30:1800+30"]

{[%evp 14,78,55,9,7,-32,-27,-29,-12,-79,-66,-81,-83,-68,-78,-77,-84,-77,-78,-75,-66,-126,-114,-126,-124,-127,-127,-209,-205,-272,-154,-259,-265,-253,-256,-261,-253,-256,-213,-227,-281,-292,-313,-316,-316,-311,-299,-302,-280,-315,-262,-334,-276,-271,-253,-370,-259,-1164,-1012,-1160,-1158,-1136,-1106,-2080,-2012,-1363,-786]} 1. e4 {[%emt 0:00:09]} e5 {[%emt 0:00:11]} 2. Nf3 {[%emt 0:00:05]} Nc6 {[%emt 0:00:09]} 3. Bc4 {[%emt 0:00:26]} Bc5 {[%emt 0:00:17]} 4. O-O {[%emt 0:00:42]} Nf6 {[%emt 0:00:12][%cal Bg8f6,Bf6d5,Bd5c3][%mdl 32]} 5. d3 {[%emt 0:00:14]} O-O {[%emt 0:01:05]} 6. c3 {[%emt 0:01:07]} d5 {[%emt 0:00:11]} 7. exd5 {[%emt 0:01:31]} Nxd5 {[%emt 0:00:10]} 8. b4 {[%emt 0:07:15]} (8. Re1 $14 {is more appropriate.}) 8... Be7 $11 {[%emt 0:01:42] C54: Giuoco Piano: 4 c3 Nf6, main lines with 5 d4 and 5 d3.} 9. b5 {[%emt 0:10:14]} Na5 {[%emt 0:00:07]} 10. Nxe5 {[%emt 0:01:30]} Bf6 {[%emt 0:01:58] Black has an edge.} 11. f4 {[%emt 0:05:13]} (11. Ng4 $11 {keeps the balance.}) 11... Bxe5 {[%emt 0:27:17]} (11... Nxc3 $5 12. Nxc3 (12. Bxf7+ $2 Rxf7 13. Nxc3 Bxe5 $19) 12... Bxe5 13. fxe5 (13. Bxf7+ $2 Rxf7 14. fxe5 Qd4+ 15. Be3 Qxe3+ $19) 13... Qd4+ 14. Kh1 Nxc4 $15) 12. fxe5 {[%emt 0:01:15] [#]} Nxc3 $1 {[%emt 0:01:28][%mdl 64] Remove Defender, Decoy} 13. Nxc3 {[%emt 0:33:17] Ba3 is the strong threat.} ({Wrong is} 13. Bxf7+ $2 Rxf7 14. Nxc3 Qd4+ 15. Be3 Qxe3+ $19) 13... Qd4+ {[%emt 0:00:14]} 14. Rf2 {[%emt 0:04:44][%cal Oc1a3]} Nxc4 {[%emt 0:00:59]} 15. dxc4 {[%emt 0:00:11]} Qxc3 {[%emt 0:00:14]} 16. Bb2 {[%emt 0:01:04]} Qxc4 {[%emt 0:04:10] [#]} 17. Rc1 $146 {[%emt 0:06:56]} (17. Qf3 $15) ({Predecessor:} 17. a4 Be6 18. Rc1 Rfd8 19. Qxd8+ Rxd8 20. Rxc4 Rd1+ 21. Rf1 Rxf1+ 22. Kxf1 Bxc4+ 23. Kf2 {½-½ (75) Kudrin,S (2502)-Priyadharshan,K (2484) Dayton 2016}) 17... Qxb5 $17 {[%emt 0:08:22]} 18. Rxc7 {[%emt 0:05:55] [#]} Be6 $1 {[%emt 0:01:10]} 19. Qf3 {[%emt 0:02:04]} Qa5 {[%emt 0:06:24]} 20. Re7 {[%emt 0:03:03]} (20. Rc1 $17 {is a better defense.}) 20... Qxa2 {[%emt 0:04:37]} 21. h3 {[%emt 0:00:50]} Qd5 {[%emt 0:04:45]} ({Don't go for} 21... Qb1+ $2 22. Kh2 $19) (21... b5 $19 {aiming for ...Qc4.} 22. Rc7 Qb1+ 23. Rc1 Qg6) 22. Qe3 {[%emt 0:01:16]} (22. Qxd5 $17 Bxd5 23. Rd2) 22... a5 $19 {[%emt 0:04:56]} 23. Rd2 {[%emt 0:01:31]} Qb5 {[%emt 0:03:10]} 24. Ba3 {[%emt 0:02:39]} Qb1+ {[%emt 0:01:41]} 25. Kh2 {[%emt 0:00:14]} b5 {[%emt 0:02:43]} 26. Rb2 {[%emt 0:01:39]} Qf1 {[%emt 0:00:52]} 27. Rf2 {[%emt 0:00:52] [#]} Qc4 {[%emt 0:01:09] White must now prevent ...b4.} 28. Bd6 {[%emt 0:00:07]} Rfe8 {[%emt 0:05:57]} 29. Rc7 {[%emt 0:00:48]} Qb3 {[%emt 0:01:55]} 30. Rc3 {[%emt 0:00:11]} Qb1 {[%emt 0:01:06]} 31. Qf4 {[%emt 0:02:36]} Rac8 {[%emt 0:03:02][%cal Ba8c8,Bc8c3,Bc3c7][%mdl 32]} 32. Rg3 {[%emt 0:00:49]} g6 {[%emt 0:02:53]} ({Inferior is} 32... Rc1 33. Rxg7+ Kxg7 34. Qf6+ Kg8 35. Qg5+ Qg6 36. Qxc1 $11) 33. Rf1 {[%emt 0:00:06]} Qc2 {[%emt 0:00:36]} 34. Qh6 {[%emt 0:01:34]} (34. Ra3 {was necessary.}) 34... Rc3 {[%emt 0:02:57]} 35. Rxf7 $2 {[%emt 0:02:39]} (35. Rxc3 Qxc3 36. Rc1) 35... Bxf7 {[%emt 0:00:30] Black is clearly winning.} 36. e6 {[%emt 0:00:04]} Bxe6 {[%emt 0:02:51] ( -> ...Rxg3)} 37. Be5 {[%emt 0:00:54] [#]} Rc7 $1 {[%emt 0:00:01]} 38. h4 {[%emt 0:01:58]} (38. Ba1 Qb1) 38... Bf5 {[%emt 0:00:17]} 39. Rc3 {[%emt 0:00:52]} Qxc3 {[%emt 0:01:08] White did not feel at home in the position after the opening.  Weighted Error Value: White=0.64/Black=0.14 (very precise)} 0-1